Cogmind - Beta 16.1 @@@ ROGUE MODE // 2026.05.01 @ 18:54:18 Player: Stavbearer Result: Destroyed by S-27 Virus with Autogun Performance ------------- Evolutions (5) 2500 Regions Visited (7) 1400 Robots Destroyed (97) 485 Value Destroyed (3342) 3342 Prototype IDs (9) 180 Alien Tech Used (0) 0 Bonus (160) 160 TOTAL SCORE: 8067 Bonus ------- High Alert Combat Kills 67 Follower Combat Kills 93 Cogmind --------- Core Integrity 0/1000 Matter 184/300 Energy 99/100 System Corruption 13% Temperature Cool (0) Movement Core (50) Location -5/Factory Parts ------- > --- POWER (2) -------- (None) > --- PROPULSION (4) --- (None) > --- UTILITY (8) ------ Improved Coolant Injector Hacking Suite System Shield > --- WEAPON (3) ------- (None) > --- INVENTORY (5) ---- Light Fission Core Micro Fission Core Medium Storage Unit Small Battery (100) Improved Signal Interpreter Peak State ------------ > --- POWER ------------ Micro Fission Core Micro Fission Core > --- PROPULSION ------- Gravmag Array Antigrav System Antigrav System > --- UTILITY ---------- IFF Parser Improved Melee Analysis Suite Microactuators Improved Medium Armor Plating Improved Thermal Shield Hacking Suite Hacking Suite System Shield > --- WEAPON ----------- Tesla Rifle Chainsword Chainsword > --- INVENTORY -------- Light Fission Core Light Fission Core Antigrav System Improved Signal Interpreter Long-range Proton Cannon [Rating: 82] Favorites ----------- Power Micro Nuclear Core Engine Light Deuterium Engine Power Core Micro Nuclear Core Reactor Micro Antimatter Reactor Propulsion Gravmag System Treads Light Treads Leg Improved Carbon-fiber Leg Wheel Wheel Hover Unit Gravmag System Utility Visual Processing Unit Device Improved Cooling System Storage Small Storage Unit Processor Visual Processing Unit Hackware Hacking Suite Protection Hardened Medium Armor Plating Weapon Chainsword Energy Gun EM Pulse Gun Energy Cannon Long-range Proton Cannon Ballistic Gun Minigun Ballistic Cannon Advanced Assault Cannon Slashing Weapon Chainsword Build | -11 -10 -10 -9 -8 -7 -6 -5 ------- Run | Yrd Mat Min Mat Mat Fac Fac Fac Slots Evolved 10 | . . . 2 2 2 2 2 Power 1 | . . . . . . . 1 Propulsion 2 | . . . . 1 . . 1 Utility 6 | . . . 2 1 2 1 . Weapon 1 | . . . . . . 1 . Parts Attached 106 | 9 . . 17 21 31 7 21 Power 16 | 1 . . 3 1 4 . 7 Engine 6 | 1 . . 3 1 1 . . Core 9 | . . . . . 3 . 6 Reactor 1 | . . . . . . . 1 Propulsion 32 | 4 . . 2 8 10 4 4 Treads 2 | . . . . 2 . . . Leg 13 | . . . . 6 7 . . Wheel 6 | 4 . . 2 . . . . Hover 11 | . . . . . 3 4 4 Flight . | . . . . . . . . Utility 33 | 2 . . 7 4 11 2 7 Device 17 | 1 . . 4 . 6 2 4 Storage 3 | 1 . . . . 1 . 1 Processor 4 | . . . 2 1 . . 1 Hackware 3 | . . . . . 3 . . Protection 6 | . . . 1 3 1 . 1 Artifact . | . . . . . . . . Weapon 25 | 2 . . 5 8 6 1 3 Energy Gun 11 | 2 . . 3 3 1 . 2 Energy Cannon 3 | . . . . 2 . . 1 Ballistic Gun 6 | . . . 2 3 1 . . Ballistic Cannon 2 | . . . . . 2 . . Launcher . | . . . . . . . . Special Weapon . | . . . . . . . . Impact Weapon . | . . . . . . . . Slashing Weapon 3 | . . . . . 2 1 . Piercing Weapon . | . . . . . . . . Special Melee Weapon . | . . . . . . . . Unidentified Prototypes 5 | . . . 2 1 2 . . Corrupted Parts 1 | . . . . . . . 1 System Corruption 1 | . . . . . . . 1 Parts Lost 45 | . . . 4 13 8 1 19 Power 7 | . . . 1 2 1 . 3 Propulsion 15 | . . . 2 5 4 . 4 Utility 14 | . . . 1 3 2 1 7 Weapon 9 | . . . . 3 1 . 5 Highest Loss Streak 12 | . . . 3 5 3 1 12 To Critical Strikes 1 | . . . . . . . 1 Average Backups 5 | 2 7 8 7 6 6 3 4 Power 1 | . 1 1 . 2 1 1 1 Propulsion 1 | . 3 3 1 . . 1 1 Utility 2 | . 2 3 4 3 3 . 1 Weapon . | . . 1 1 . 1 . . Tool/Special . | . . . . . . . . Unused Backups 18 | . . . 1 . 8 2 7 Power 6 | . . . . . 1 1 4 Propulsion 4 | . . . . . 2 1 1 Utility 6 | . . . . . 4 . 2 Weapon 2 | . . . 1 . 1 . . Tool/Special . | . . . . . . . . Average Slot Usage (%) 93 | . 100 100 99 90 97 93 81 Engine 4 | . 14 14 10 9 2 . . Core 4 | . . . . . 4 6 9 Leg 8 | . . . . 16 17 . . Wheel 5 | . 28 28 21 4 . . . Hover 6 | . . . . . 4 17 11 Device 13 | . 14 14 9 3 13 20 16 Storage 5 | . 14 14 11 9 5 . . Processor 14 | . . . 17 24 17 7 5 Hackware 9 | . . . . . 10 20 16 Protection 2 | . . . 5 5 2 . 1 Energy Gun 2 | . 28 28 7 4 . . 1 Ballistic Gun 3 | . . . 14 9 1 . . Ballistic Cannon 1 | . . . . . 4 . . Slashing Weapon 8 | . . . . . 9 19 10 Peak Build Rating 82 | 7 8 8 19 30 47 59 82 Average Rating 39 | 5 7 8 15 24 42 52 68 On Entrance 21 | . 7 8 8 19 30 46 55 Avg Prop Armor Cover (%) 6 | . . . . 5 8 5 . Naked Turns . | . . . . . . . . Heaviest Build 37 | 15 15 15 22 27 36 21 37 Greatest Support 56 | 32 26 26 26 45 56 30 42 Greatest Overweight (x) 3 | 2 . . 1 2 3 2 1 Average Overweight (x) . | . . . . . . . . Largest Inventory Capacity 10 | 8 8 8 8 8 10 5 5 Average Capacity 7 | 7 8 8 8 8 8 5 5 Most Carried 10 | 6 8 8 8 8 10 5 5 Average Carried 6 | 2 7 8 7 6 6 4 4 Final Capacity 8 | 8 8 8 8 8 5 5 5 Final Carried 8 | 6 8 8 6 8 5 5 5 Class Distribution -------------------- 51% | Mutant 29% | Hacker-Gladiator 10% | Hacker-Mutant 7% | Scavenger-Mutant Dominant Class ---------------- Mutant | -10/Materials Mutant | -10/Mines Mutant | -9/Materials Mutant | -8/Materials Mutant | -7/Factory Hacker-Gladiator | -6/Factory Hacker-Gladiator | -5/Factory Resources | -11 -10 -10 -9 -8 -7 -6 -5 ----------- Run | Yrd Mat Min Mat Mat Fac Fac Fac Matter Collected 2429 | 216 . . 548 600 733 80 252 Remotely . | . . . . . . . . Salvage Created 4095 | 176 . . 672 1016 730 348 1153 Parts 253 | 21 . . 49 64 46 16 57 Haulers Intercepted 2 | . . . 1 . . . 1 Recyclers Shooed 1 | . . . . . . . 1 Parts Field Recycled . | . . . . . . . . Retrieved Matter . | . . . . . . . . Parts Self-Destructed . | . . . . . . . . Prevented . | . . . . . . . . Parts Restored . | . . . . . . . . Kills | -11 -10 -10 -9 -8 -7 -6 -5 ------- Run | Yrd Mat Min Mat Mat Fac Fac Fac Combat Hostiles Destroyed 71 | . . . 17 21 18 6 9 Melee 29 | . . . . . 14 6 9 Guns 38 | . . . 17 21 . . . Cannons 4 | . . . . . 4 . . Classes Destroyed 12 | 3 . . 6 1 2 . . Worker 3 | 1 . . . . 1 . 1 Builder 3 | . . . 1 2 . . . Tunneler 4 | 4 . . . . . . . Hauler 2 | . . . 1 . . . 1 Recycler 5 | 1 . . . . 1 . 3 Operator 1 | . . . . . 1 . . Watcher 8 | . . . 1 . 2 1 4 Swarmer 16 | . . . 4 4 5 . 3 Grunt 34 | . . . 12 9 8 5 . Sentry 10 | . . . 1 6 1 . 2 Hunter 3 | . . . . 2 1 . . Programmer 8 | . . . . . 3 1 4 Best Kill Streak 10 | 4 . . 10 8 3 3 3 Combat Bots Only 9 | . . . 9 6 3 3 3 Max Kills in Single Turn 2 | 2 . . 2 2 1 1 1 Gunslinging 1 | . . . . 1 . . . Exploded . | . . . . . . . . Melee 1 | . . . . . 1 1 1 Uniques/NPCs Destroyed . | . . . . . . . . Combat | -11 -10 -10 -9 -8 -7 -6 -5 -------- Run | Yrd Mat Min Mat Mat Fac Fac Fac Hostile Shots Fired 584 | . . . 65 132 164 12 211 Missed 178 | . . . 11 23 57 9 78 Hits 406 | . . . 54 109 107 3 133 Projectile 406 | . . . 54 109 107 3 133 AOE 3 | . . . . . 1 . 2 Critical Strikes 11 | . . . 2 3 3 . 3 Damage Taken 6429 | . . . 670 1578 1611 55 2515 Core 1642 | . . . 166 220 248 . 1008 Absorbed by Shields . | . . . . . . . . Redirected to Shielding 9 | . . . . . 9 . . Ignored by Resistances 54 | . . . . . . . 54 Regen/Repaired (Parts) 26 | . . . . . . 26 . Core Remaining (%) 80 | 100 . 100 58 60 64 100 . Volleys Fired 174 | 12 . . 54 65 25 . 18 Largest 3 | 2 . . 2 2 2 . 3 Hottest 221 | 80 . . 121 113 80 . 221 Shots Fired 316 | 24 . . 107 108 48 . 29 Gun 254 | 24 . . 107 105 2 . 16 Cannon 62 | . . . . 3 46 . 13 Launcher . | . . . . . . . . Special . | . . . . . . . . Kinetic 215 | . . . 89 78 48 . . Thermal 30 | . . . 11 19 . . . Explosive . | . . . . . . . . Electromagnetic 71 | 24 . . 7 11 . . 29 Robot Hit Streak 47 | 6 . . 12 47 11 . 4 Robot Miss Streak 9 | 1 . . 4 4 9 . 5 Penetration Max 1 | . . . . 1 . . . Secondary Targets 7 | . . . 2 5 . . . Max Gunslinging Chain 1 | . . . 1 1 . . . Shots Hit Robots 311 | 17 . . 74 91 59 18 52 Core Hits 142 | 7 . . 30 44 28 10 23 Critical Kills . | . . . . . . . . Critical Parts Destroyed 1 | . . . 1 . . . . Critical Strikes 14 | . . . 1 . 6 1 6 Destroy 1 | . . . 1 . . . . Blast 1 | . . . . . 1 . . Sever 12 | . . . . . 5 1 6 Melee Attacks 175 | . . . . . 60 45 70 Impact . | . . . . . . . . Slashing 175 | . . . . . 60 45 70 Piercing . | . . . . . . . . Sneak Attacks 14 | . . . . . 3 2 9 Combat Hostiles 4 | . . . . . 2 2 . Follow-up Attacks 9 | . . . . . 2 2 5 Damage Inflicted 7884 | 248 . . 1249 1685 1966 721 2015 Guns 3236 | 248 . . 1249 1638 11 . 90 Cannons 799 | . . . . 47 669 . 83 Explosions . | . . . . . . . . Melee 3811 | . . . . . 1251 721 1839 Ramming 38 | . . . . . 35 . 3 Kinetic 2996 | . . . 1051 1265 680 . . Thermal 357 | . . . 123 234 . . . Explosive . | . . . . . . . . Electromagnetic 682 | 248 . . 75 186 . . 173 Impact . | . . . . . . . . Slashing 3811 | . . . . . 1251 721 1839 Piercing . | . . . . . . . . Highest Corruption 13 | . . . 3 . 6 . 13 Average Corruption 4 | . . . 2 . 5 . 7 Corruption Purged . | . . . . . . . . Corruption Blocked . | . . . . . . . . Effects 68 | . . . 13 . 41 . 14 Message Errors 20 | . . . 3 . 12 . 5 Matter Fused 22 | . . . 1 . 17 . 4 Heat Flow Errors 8 | . . . 4 . 3 . 1 Energy Discharges 5 | . . . . . 3 . 2 Parts Rejected 1 | . . . 1 . . . . Parts Fused 1 | . . . 1 . . . . Data Loss (minor) 8 | . . . . . 6 . 2 Data Loss (major) 2 | . . . 2 . . . . Weapon Failures 1 | . . . 1 . . . . Overload Shots . | . . . . . . . . Overflow Damage 266 | . . . . . 42 8 216 Projectiles 27 | . . . . . . . 27 Explosions . | . . . . . . . . Melee 239 | . . . . . 42 8 189 Knockbacks 11 | . . . . . 11 . . Impact . | . . . . . . . . Kinetic 7 | . . . . . 7 . . Secondary 4 | . . . . . 4 . . Self-Inflicted Damage 1 | . . . . . . . 1 Shots . | . . . . . . . . Rammed 1 | . . . . . . . 1 Targets Rammed 10 | . . . . . 9 . 1 Kicked 9 | . . . . . 9 . . Crushed . | . . . . . . . . Highest Temperature 452 | 90 . . 340 66 452 . 446 Average Temperature 77 | 32 . . 86 15 76 . 141 Received Heat Transfer 1473 | . . . 300 630 432 18 93 Effects 8 | . . . 3 . 1 . 4 Shutdowns 2 | . . . . . . . 2 Energy Bleed 1 | . . . 1 . . . . Interference 2 | . . . 2 . . . . Matter Decay 2 | . . . . . . . 2 Damage (minor) 1 | . . . . . 1 . . Siege Activations . | . . . . . . . . Martial Activations . | . . . . . . . . Shielding Activations . | . . . . . . . . Robots Disrupted . | . . . . . . . . Combat Hostiles . | . . . . . . . . Robots Corrupted . | . . . . . . . . Combat Hostiles . | . . . . . . . . Parts Fried 3 | . . . . 1 . . 2 Impact Corruptions . | . . . . . . . . Robots Melted . | . . . . . . . . Combat Hostiles . | . . . . . . . . Parts Melted 2 | . . . 1 1 . . . Heat Transferred 714 | . . . 233 481 . . . Parts Sabotaged . | . . . . . . . . Parts Stolen . | . . . . . . . . Parts Stripped . | . . . . . . . . Power Chain Reactions . | . . . . . . . . Alert | -11 -10 -10 -9 -8 -7 -6 -5 ------- Run | Yrd Mat Min Mat Mat Fac Fac Fac Maximum Alert Level 2 | . . . 1 2 . . . Low Security (%) 89 | 100 100 100 87 29 100 100 100 Level 1 7 | . . . 12 45 . . . Level 2 2 | . . . . 24 . . . Level 3 . | . . . . . . . . Level 4 . | . . . . . . . . Level 5 . | . . . . . . . . High Security . | . . . . . . . . Max Security . | . . . . . . . . Peak Influence 440 | 10 3 . 293 440 164 60 89 Initial 113 | . 3 . . 113 113 28 14 Average 61 | 2 . . 65 272 38 13 26 Influence Increases 2729 | 30 . . 603 727 680 232 457 Destroy 0b10 Robot/C 1480 | . . . 400 420 360 120 180 Destroy 0b10 Robot/NC 135 | 30 . . 20 10 25 5 45 Destroy Leader 372 | . . . 76 110 104 32 50 Allied During Kill 11 | . . . 11 . . . . Successful Hack 128 | . . . 17 18 54 33 6 Disable Machine 90 | . . . . 15 30 30 15 Destroy Structure 63 | . . . 4 4 17 12 26 Partial Spotted 45 | . . . . . 45 . . Lose Combat Pursuer 405 | . . . 75 150 45 . 135 Influence Decreases 2651 | 25 5 . 335 745 871 261 409 Entered New Map 341 | . 2 . . 155 137 31 16 Time Decay 1630 | 25 3 . 275 310 504 230 283 Lost Part 360 | . . . 40 130 80 . 110 Lost Ally 20 | . . . 20 . . . . Purge Threat 300 | . . . . 150 150 . . Squads Dispatched 18 | . . . 1 4 5 6 2 Investigation 4 | . . . . 1 . 3 . Extermination 6 | . . . . . 2 2 2 Reinforcement 7 | . . . 1 3 2 1 . Assault . | . . . . . . . . Garrison 1 | . . . . . 1 . . Intercept . | . . . . . . . . Searches Triggered . | . . . . . . . . Construction Impeded 1 | . . . . . 1 . . Haulers Reinforced . | . . . . . . . . Active Scanning Responses . | . . . . . . . . Cargo Convoy Interrupts . | . . . . . . . . Stealth | -11 -10 -10 -9 -8 -7 -6 -5 --------- Run | Yrd Mat Min Mat Mat Fac Fac Fac Distress Signals 3 | . . . 2 1 . . . Communications Jammed . | . . . . . . . . Distress Signals . | . . . . . . . . Times Spotted 150 | . . . 33 34 32 5 46 Peak Tracking Total 14 | . . . 9 12 6 3 14 Tactical Retreats 18 | . . . 2 4 6 . 6 ECM-based Alert Blocks 4 | . . . . . 4 . . Traps | -11 -10 -10 -9 -8 -7 -6 -5 ------- Run | Yrd Mat Min Mat Mat Fac Fac Fac Traps Triggered 7 | . . . 3 . 1 . 3 Indirectly . | . . . . . . . . Trap Hack Attempts . | . . . . . . . . Triggered . | . . . . . . . . Disarmed . | . . . . . . . . Reprogrammed 4 | . . . . . . 4 . Reused . | . . . . . . . . Traps Extracted . | . . . . . . . . Installed . | . . . . . . . . Triggered . | . . . . . . . . Machines | -11 -10 -10 -9 -8 -7 -6 -5 ---------- Run | Yrd Mat Min Mat Mat Fac Fac Fac Machines Disabled 6 | . . . . 1 2 2 1 Max in Single Turn 1 | . . . . 1 1 1 1 Garrison Access 2 | . . . . . 1 . 1 Machines Repaired . | . . . . . . . . Machines Dismantled . | . . . . . . . . Machines Sabotaged . | . . . . . . . . Overloaded Fab Kills . | . . . . . . . . Hacking | -11 -10 -10 -9 -8 -7 -6 -5 --------- Run | Yrd Mat Min Mat Mat Fac Fac Fac Machines Accessed 36 | . 1 . 6 5 13 8 3 Terminals 23 | . 1 . 5 4 8 3 2 Fabricators 2 | . . . . . . 2 . Repair Stations 1 | . . . . . . 1 . Recycling Units 2 | . . . . . 1 1 . Scanalyzers 6 | . . . 1 1 3 1 . Garrison Access 2 | . . . . . 1 . 1 Total Hacks 129 | . 2 . 15 20 44 33 15 Successful 70 | . . . 5 12 26 19 8 Failed 58 | . 2 . 10 8 17 14 7 Catastrophic 13 | . . . 2 1 6 2 2 Database Lockouts 1 | . . . . . 1 . . Manual 34 | . . . 3 7 9 8 7 Terminals 83 | . 2 . 13 11 27 16 14 Fabricators 7 | . . . . . . 7 . Repair Stations 4 | . . . . . . 4 . Recycling Units 6 | . . . . . 3 3 . Scanalyzers 27 | . . . 2 9 13 3 . Garrison Access 2 | . . . . . 1 . 1 Terminal Hacks 36 | . . . 5 5 11 8 7 Record 1 | . . . 1 . . . . Part Schematic 1 | . . . . . 1 . . Prototype ID Bank 2 | . . . 1 . . . 1 Branch Access Points 1 | . . . . . . 1 . Emergency Access Points 2 | . . . . . 1 . 1 Garrison Index 1 | . . . . . . 1 . Alert Level 1 | . . . . 1 . . . Unreport Threat 2 | . . . . 1 1 . . Locate Traps 7 | . . . 1 1 2 2 1 Reprogram Traps 1 | . . . . . . 1 . Dispatch Records 3 | . . . 1 . 1 1 . Surveillance Status 4 | . . . . 1 1 . 2 Patrol Status 4 | . . . 1 . 1 1 1 Garrison Status 1 | . . . . . 1 . . Zone Layout 5 | . . . . 1 2 1 1 Fabricator Hacks 4 | . . . . . . 4 . Network Status 1 | . . . . . . 1 . Load Schematic 2 | . . . . . . 2 . Build 1 | . . . . . . 1 . Repair Station Hacks 3 | . . . . . . 3 . Scan Component 2 | . . . . . . 2 . Repair 1 | . . . . . . 1 . Recycling Unit Hacks 6 | . . . . . 3 3 . Report Inventory 2 | . . . . . 1 1 . Retrieve Matter 3 | . . . . . 2 1 . Retrieve Components 1 | . . . . . . 1 . Scanalyzer 19 | . . . . 7 11 1 . Insert Component 8 | . . . . 3 5 . . Analyze 7 | . . . . 2 5 . . Retrieve Study 4 | . . . . 2 1 1 . Garrison Access Hacks 2 | . . . . . 1 . 1 Seal Access 2 | . . . . . 1 . 1 Unauthorized Hacks . | . . . . . . . . Terminals . | . . . . . . . . Fabricators . | . . . . . . . . Repair Stations . | . . . . . . . . Recycling Units . | . . . . . . . . Scanalyzers . | . . . . . . . . Garrison Access . | . . . . . . . . Data Cores Recovered 1 | . . . . . 1 . . Used 1 | . . . . . 1 . . Hacking Detections 32 | . 1 . 6 5 11 7 2 Full Trace Events 5 | . . . 1 1 . 3 . Feedback Events 1 | . . . 1 . . . . Corruption 1 | . . . 1 . . . . Feedback Blocked . | . . . . . . . . Robot Schematics Acquired . | . . . . . . . . Robots Built . | . . . . . . . . Authchips . | . . . . . . . . Time . | . . . . . . . . Total Robot Build Rating . | . . . . . . . . Part Schematics Acquired 7 | . . . . 2 5 . . Parts Built 2 | . . . . . . 2 . Authchips . | . . . . . . . . Time 42 | . . . . . . 42 . Total Part Build Rating 8 | . . . . . . 8 . Part Studies Acquired 3 | . . . . 1 1 1 . Parts Repaired 1 | . . . . . . 1 . Time 38 | . . . . . . 38 . Parts Recycled . | . . . . . . . . Recycled Matter . | . . . . . . . . Retrieved Matter . | . . . . . . . . Retrieved Components 3 | . . . . . . 3 . Parts Scanalyzed 7 | . . . . 2 5 . . Part Schematics Acquired 6 | . . . . 2 4 . . Parts Damaged 3 | . . . . . 3 . . Bothacking | -11 -10 -10 -9 -8 -7 -6 -5 ------------ Run | Yrd Mat Min Mat Mat Fac Fac Fac Used RIF Installer . | . . . . . . . . Robots Hacked . | . . . . . . . . Non-combat . | . . . . . . . . Combat . | . . . . . . . . Robot Hacks Applied . | . . . . . . . . Relay Couplers Released 3 | . . . . . . . 3 Programmers 3 | . . . . . . . 3 Fabnet Peak Effective % . | . . . . . . . . Robots Rewired . | . . . . . . . . Allies Hacked . | . . . . . . . . Hacks Repelled . | . . . . . . . . Allies | -11 -10 -10 -9 -8 -7 -6 -5 -------- Run | Yrd Mat Min Mat Mat Fac Fac Fac Total Allies 3 | . . 3 . . . . . Largest Group 3 | . . 3 3 . . . . Highest-Rated Group 40 | . . 40 40 . . . . Highest-Rated Ally 16 | . . 16 16 . . . . Total Orders 2 | . . . 2 . . . . STAY 1 | . . . 1 . . . . GUARD 1 | . . . 1 . . . . Ally Attacks 19 | . . . 19 . . . . Total Damage 149 | . . . 149 . . . . Kills 4 | . . . 4 . . . . Allies Corrupted . | . . . . . . . . Allies Melted . | . . . . . . . . Intel | -11 -10 -10 -9 -8 -7 -6 -5 ------- Run | Yrd Mat Min Mat Mat Fac Fac Fac Active Infowar (turns) 5786 | 22 75 128 981 684 2073 916 907 Optics 4934 | . . . 966 684 2073 916 295 Sensors 1234 | . . . . . 1234 . . IFF 976 | . . . . . . 69 907 Terrain 13 | . . . 13 . . . . Seismic 821 | 22 75 128 459 137 . . . ECM 1180 | . . . 213 14 953 . . Robot Analysis Total . | . . . . . . . . Derelict Logs Recovered . | . . . . . . . . Drone Launches . | . . . . . . . . Drone Recoveries . | . . . . . . . . Exploration | -11 -10 -10 -9 -8 -7 -6 -5 ------------- Run | Yrd Mat Min Mat Mat Fac Fac Fac Turns Passed 5992 | 113 75 128 981 684 2073 916 1022 Spaces Moved 3912 | 68 70 129 556 376 1334 529 850 Core 122 | 12 . . . . . . 110 Treads 23 | . . . . 23 . . . Legs 1079 | . . . . 247 799 33 . Wheels 917 | 56 70 129 556 106 . . . Hover 1771 | . . . . . 535 496 740 Flight . | . . . . . . . . Fastest Speed 50 | 50 90 90 80 90 52 52 50 Average Speed 79 | 87 90 90 88 112 89 58 54 Slowest Speed 260 | 150 90 90 115 240 260 180 111 Overloaded Moves . | . . . . . . . . Propulsion Burnouts . | . . . . . . . . Robots Hopped . | . . . . . . . . Potential Cave-ins . | . . . . . . . . Cave-ins Triggered . | . . . . . . . . Exploration Rate (%) 27 | 4 17 33 44 40 42 12 25 Regions Visited 7 Branch Regions 1 Pre-discovered Areas . | . . . . . . . . Known Exits Taken . | . . . . . . . . Unknown Exits Taken 7 | 1 1 1 1 1 1 1 . Scrap Searched . | . . . . . . . . Spaces Dug 37 | . . . . . 12 12 13 Terrain Destroyed 39 | . . . . . 14 12 13 Melee 34 | . . . . . 9 12 13 Projectile 5 | . . . . . 5 . . AOE . | . . . . . . . . Terrain Rammed . | . . . . . . . . Walls Destroyed . | . . . . . . . . Machines Disabled . | . . . . . . . . Actions | -11 -10 -10 -9 -8 -7 -6 -5 --------- Run | Yrd Mat Min Mat Mat Fac Fac Fac Total 6295 | 92 81 140 948 526 2082 1103 1323 Wait 1792 | . 10 12 301 48 564 518 339 Move 3904 | 67 69 128 555 375 1333 528 849 Hop . | . . . . . . . . Pick Up 59 | 4 2 . 7 7 23 6 10 Fast Attach 40 | 7 . . 2 9 4 5 13 Attach 30 | . . . 5 7 9 2 7 Detach 10 | . . . . 1 3 2 4 Swap 68 | 2 . . 19 12 24 2 9 Drop 57 | . . . 5 2 28 8 14 Fire 174 | 12 . . 54 65 25 . 18 Melee 143 | . . . . . 53 32 58 Ram 1 | . . . . . . . 1 Kick 9 | . . . . . 9 . . Crush . | . . . . . . . . Escape Stasis 8 | . . . . . 7 . 1 Rewire . | . . . . . . . . Trap . | . . . . . . . . Miscellaneous . | . . . . . . . . Route ------- -11/Scrapyard -10/Materials -10/Mines -9/Materials -8/Materials -7/Factory -6/Factory (discovered 3 exits: *Fac / Low x2) -5/Factory History --------- Turn | Location | Event 2 | -11/Scrapyard | Met Revision 17 15 | -11/Scrapyard | Discovered new exit (range 16) 114 | -11/Scrapyard | Entered Materials 180 | -10/Materials | Discovered new exit (range 11) 189 | -10/Materials | Entered Mines 213 | -10/Mines | Assisted by bots powering up and referring to "LRC-V3" 284 | -10/Mines | Found a hidden stash of uninstalled traps 297 | -10/Mines | Discovered new exit (range 13) 305 | -10/Mines | Build established: Mutant 317 | -10/Mines | Entered Materials 317 | -9/Materials | Accompanied by 3 allies 317 | -9/Materials | Evolved 2 slots: Utility x2 1229 | -9/Materials | Lost 3 parts (2n1u) 1230 | -9/Materials | Destroyed 9 combat bots 1276 | -9/Materials | Discovered new exit (range 17) 1298 | -9/Materials | Entered another Materials area 1298 | -8/Materials | Evolved 2 slots: Propulsion x1, Utility x1 1493 | -8/Materials | Lost 5 parts (2n2u1w) 1769 | -8/Materials | Lost 3 parts (1p1u1w) 1951 | -8/Materials | Discovered new exit (range 18) 1982 | -8/Materials | Entered Factory 1982 | -7/Factory | Evolved 2 slots: Utility x2 2348 | -7/Factory | Central database locked down 2761 | -7/Factory | Lost 3 parts (2n1u) 2813 | -7/Factory | Garrison activated, responded to threat 3837 | -7/Factory | Build established: Hacker-Mutant 3966 | -7/Factory | Discovered new exit (range 18) 4055 | -7/Factory | Entered another Factory area 4055 | -6/Factory | Evolved 2 slots: Utility x1, Weapon x1 4132 | -6/Factory | Fabricated Gravmag System (x2) 4193 | -6/Factory | Repaired Reaction Control System 4350 | -6/Factory | Identified exit to Lower Caves 4352 | -6/Factory | Build established: Hacker-Gladiator 4964 | -6/Factory | Discovered new exit (range 2) 4971 | -6/Factory | Entered another Factory area 4971 | -5/Factory | Evolved 2 slots: Power x1, Propulsion x1 5304 | -5/Factory | Lost 4 parts (1p2u1w) 5426 | -5/Factory | Spotted B-75 Beast 5858 | -5/Factory | Lost 3 parts (2u1w) 5888 | -5/Factory | System corruption reached 10% 5945 | -5/Factory | Core integrity fell below 50% 5968 | -5/Factory | Lost 12 parts (2p4n3u3w) 5972 | -5/Factory | Core integrity fell below 20% 5993 | -5/Factory | Destroyed by S-27 Virus with Autogun Last Messages --------------- 05932_ Antigrav System destroyed. 05935_ Penetrated by Slug. 05936_ Antigrav System destroyed. 05936_ Mic. Antimatter Reactor destroyed. 05936_ Slammed into U-05 Engineer. 05937_ IFF Parser destroyed. 05937_ K-01 Serf collects debris. 05937_ Hacking Suite destroyed. 05939_ Slug penetrates Wall. 05942_ Penetrated by Slug. 05943_ HLMWM4VRDYO7RSSZ9%6 05947_ S-27 Virus destroyed. 05947_ Slug penetrates Wall. 05959_ System corrupted: Matter fused (-10). 05969_ Dropped Lgt. Fission Core. 05970_ Acquired Mic. Fission Core. 05973_ S-27 Virus destroyed. 05983_ O:PGLV1 05983_ K-01 Serf cleans the Nuclear Reactor. Map ----- +----------------------------------------------------+ | ??????# #####+###????????????????????????????????? | | ??????# #????????????????????????????????????????? | | ??????# #????????????????????????????????????????? | | ??????# #????????????????????????????????????????? | | ??????# #????????????????????????????????????????? | | ??????# #????????????????????????????????????????? | | ??????# #????????????????????????????????????????? | | ??????# #????????????????????????????????????????? | | ??#####/############?????????????????????????????? | | ??# = # +?????????????????????????????? | | ??# =%""" """ # #?????????????????????????????? | | ??# * """ """ # #######+### ?????????????????? | | ??# """ """ # ?????????????????? | | ### # ????????????????? | | + """ """ + ????????????????? | | ### """ """ #p ????????????????? | | ??# """ """ # s ????????????????? | | ??# # #########?#?????????????????? | | ??# # s# #?????????????????? | | ??# # #s""" """ #?????????????????? | | ??# # s """ """ #?????????????????? | | ??######/###/### #s""" """ #?????????????????? | | ???????# #?# #?# #s #?????????????????? | | ???????# #?# #?# #s #?????????????????? | | ???????# #?# #?# #s #?????????????????? | | ???????# #?# #?# # @ #?????????????????? | | ???????# ### ### ###########?????????????????? | | ???????# #???????????????????????????? | | ???????# #???????????????????????????? | | ????? #???????????????????????????? | | ????#########+## #???????????????????????????? | | ????????????? ?# #???????????????????????????? | | ????????????? ?# #???????????????????????????? | | ????????????? ?? #???????????????????????????? | | ????????????? ???? +???????????????????????????? | | ????????????? ?????? #???????????????????????????? | | ????????????? ???????#???????????????????????????? | | ?????????????????????????????????????????????????? | | ?????????????????????????????????????????????????? | | ?????????????????????????????????????????????????? | | ?????????????????????????????????????????????????? | | ?????????????????????????????????????????????????? | | ?????????????????????????????????????????????????? | | ?????????????????????????????????????????????????? | | ?????????????????????????????????????????????????? | | ?????????????????????????????????????????????????? | | ?????????????????????????????????????????????????? | | ?????????????????????????????????????????????????? | | ?????????????????????????????????????????????????? | | ?????????????????????????????????????????????????? | +----------------------------------------------------+ Best States ------------- Heat Dissipation 61 Coolant Potential 80 Energy Generation 31 Energy Capacity 300 Matter Stores 300 Matter Capacity 300 Sight Range 18 Robot Scan Range 15 Terrain Scan Range 16 Terrain Scan Density 10 ECM Strength 1 Armor Coverage 225 Resistance: TH 25 Utility Shielding 66 Melee Speed Boost 20 Evasion (%) 63 Targeting Accuracy 16 Melee Accuracy 6 Recoil Reduction 2 Offensive Hacking 20 Defensive Hacking 10 Item Schematics ----------------- Imp. Terrain Scanner | -8/Materials | Scanalyzed Ion Engine | -8/Materials | Scanalyzed Adv. Assault Cannon | -7/Factory | Scanalyzed Linear Gravjet | -7/Factory | Hacked Chainsword | -7/Factory | Scanalyzed Microactuators | -7/Factory | Scanalyzed Gravmag System | -7/Factory | Scanalyzed Robot Schematics ------------------ None Fabricated ------------ Gravmag System | x2 | -6/Factory Repaired ---------- Reaction Control System | 13% | -6/Factory Studied --------- Carbon-fiber Leg | -8/Materials | Hacked Imp. Carbon-fiber Leg | -7/Factory | Hacked Gravmag System | -6/Factory | Hacked Alien Tech Used ----------------- None Achievements -------------- root@ Challenges ------------ None Game ------ Seed LaunchGravmagStatue Manual? 0 Play Time 01:51:32 Cumulative 42.9 hours Start 2026.05.01 @ 04:16:01 End 2026.05.01 @ 18:54:18 Sessions 5 Manual Loads 0 Difficulty Rogue Special Mode None Game No. 38 Rogue 38 Adventurer 0 Explorer 0 Win Type - Total 0 Types 0/0/0/0/0/0/0/0/0/0 Lore% 12 Gallery% 27 Achievement% 19 Wizard Run 0 Options --------- Layout 2 ASCII 0 Keyboard 1 Movement Vi Keybinds 0 Fullscreen 2 Font 24/Smallcaps Map View 50x44 Zoom Use 0% Tactical HUD 1 Map Filters NONE Filters NONE Steam 1 RUN: 4c79fe98-44ea-4cd2-818b-596403d859b2